lending/lending_fUSD_20250121
["ID","MTS","AMOUNT","RATE_DAILY","PERIOD"]
[349846986,1737459053758,-500.0,0.00020273,2]
[349846987,1737459053768,-500.0,0.00020273,2]
[349846988,1737459053778,-500.0,0.00020273,2]
[349846989,1737459053787,-500.0,0.00020273,2]
[349846990,1737459053797,-537.74,0.00020273,2]
[349846991,1737459053807,-500.0,0.00020273,2]
[349846992,1737459053816,-500.0,0.00020273,2]
[349846993,1737459053826,-321.87749717,0.00020273,2]
[349846994,1737459053836,-500.0,0.00020273,2]
[349846995,1737459053846,-500.0,0.00020273,2]
[349846996,1737459053856,-514.44267669,0.00020273,2]
[349846997,1737459053865,-500.0,0.00020273,2]
[349846998,1737459053876,-585.42,0.00020273,2]
[349846999,1737459053886,-2128.11,0.00020273,2]
[349847000,1737459053896,-500.0,0.00020273,2]
[349847001,1737459053905,-500.0,0.00020273,2]
[349847002,1737459053915,-500.0,0.00020273,2]
[349847003,1737459053925,-765.34,0.00020273,2]
[349847004,1737459053935,-500.0,0.00020273,2]
[349847005,1737459053944,-500.0,0.00020273,2]
[349847006,1737459053954,-500.0,0.00020273,2]
[349847007,1737459053963,-500.0,0.00020273,2]
[349847008,1737459053973,-500.0,0.00020273,2]
[349847009,1737459053983,-632.05,0.00020273,2]
[349847010,1737459053992,-500.0,0.00020273,2]
[349847011,1737459054002,-500.0,0.00020273,2]
[349847012,1737459054013,-500.0,0.00020273,2]
[349847013,1737459054022,-159.40303725,0.00020273,2]
[349847014,1737459054032,-500.0,0.00020273,2]
[349847015,1737459054041,-500.0,0.00020273,2]
[349847016,1737459054051,-500.0,0.00020273,2]
[349847017,1737459054061,-1427.89,0.00020273,2]
[349847018,1737459054070,-500.0,0.00020273,2]
[349847019,1737459054079,-1787.2,0.00020273,2]
[349847020,1737459054089,-531.87,0.00020273,2]
[349847021,1737459054098,-500.0,0.00020273,2]
[349847022,1737459054108,-500.0,0.00020273,2]
[349847023,1737459054118,-402.56291367,0.00020317,2]
[349847024,1737459054130,-189.88,0.00020356,2]
[349847025,1737459054140,-279.14,0.00020356,2]
[349847026,1737459054150,-150.0,0.00020356,2]
[349847027,1737459054160,-150.0,0.00020356,2]
[349847028,1737459054170,-150.0,0.00020356,2]
[349847029,1737459054180,-150.0,0.00020356,2]
[349847030,1737459054190,-437.71,0.00020356,2]
[349847031,1737459054200,-150.0,0.00020356,2]
[349847032,1737459054210,-298.01,0.00020356,2]
[349847033,1737459054219,-150.0,0.00020372,2]
[349847034,1737459054229,-150.0,0.00020391,2]
[349847035,1737459054239,-3451.6915913,0.00020446,2]
[349847036,1737459054248,-500.0,0.00020447,2]
[349847037,1737459054258,-83811.15108223,0.000205,2]
[349847038,1737459054268,-502.56992317,0.00020521,2]
[349847039,1737459054278,-152.07,0.00020546,2]
[349847040,1737459054287,-500.0,0.00020546,2]
[349847041,1737459054297,-1213.76,0.00020546,2]
[349847042,1737459054307,-624.28,0.00020546,2]
[349847043,1737459054316,-1357.46,0.00020546,2]
[349847044,1737459054326,-6606.09,0.00020546,2]
[349847045,1737459054336,-500.0,0.00020546,2]
[349847046,1737459054346,-500.0,0.00020546,2]
[349847047,1737459054356,-500.0,0.00020546,2]
[349847048,1737459054365,-500.0,0.00020546,2]
[349847049,1737459054376,-409.204484,0.00020546,2]
[349847050,1737459054386,-785.18,0.00020546,2]
[349847051,1737459054396,-724.87,0.00020546,2]
[349847052,1737459054406,-1338.48,0.00020546,2]
[349847053,1737459054416,-596.08,0.00020546,2]
[349847054,1737459054426,-1373.44,0.00020546,2]
[349847055,1737459054436,-762.52,0.00020546,2]
[349847056,1737459054445,-289.329478,0.00020546,2]
[349847057,1737459054455,-830.31,0.00020546,2]
[349847058,1737459054465,-500.0,0.00020546,2]
[349847059,1737459054475,-500.0,0.00020546,2]
[349847060,1737459054485,-2465.73,0.00020546,2]
[349847061,1737459054495,-1634.47,0.00020546,2]
[349847062,1737459054505,-910.98,0.00020546,2]
[349847063,1737459054514,-760.26,0.00020546,2]
[349847064,1737459054524,-1581.37,0.00020546,2]
[349847065,1737459054533,-999.0,0.00020546,2]
[349847066,1737459054543,-1827.33,0.00020546,2]
[349847067,1737459054553,-500.0,0.00020546,2]
[349847068,1737459054569,-525.08459881,0.00020546,2]
[349847069,1737459054579,-165.374861,0.00020546,2]
[349847070,1737459054590,-1239.55,0.00020546,2]
[349847071,1737459054600,-923.48,0.00020546,2]
[349847072,1737459054611,-2290.67,0.00020546,2]
[349847073,1737459054621,-801.08,0.00020546,2]
[349847074,1737459054637,-886.64,0.00020546,2]
[349847075,1737459054646,-677.79,0.00020546,2]
[349847076,1737459054657,-963.55,0.00020546,2]
[349847077,1737459054667,-1690.83,0.00020546,2]
[349847078,1737459054676,-1017.87,0.00020546,2]
[349847079,1737459054686,-2000.0,0.00020547,2]
[349847080,1737459054696,-200.0,0.00020547,2]
[349847081,1737459054706,-500.0,0.00020547,2]
[349847082,1737459054715,-500.0,0.00020547,2]
[349847083,1737459054725,-500.0,0.00020547,2]
[349847084,1737459054735,-915.83,0.00020547,2]
[349847085,1737459054745,-500.0,0.00020547,2]
[349847086,1737459054755,-500.0,0.00020547,2]
[349847087,1737459054765,-531.82,0.00020547,2]
[349847088,1737459054774,-500.0,0.00020547,2]
[349847089,1737459054784,-500.0,0.00020547,2]
[349847090,1737459054794,-500.0,0.00020547,2]
[349847091,1737459054803,-500.0,0.00020547,2]
[349847092,1737459054813,-500.0,0.00020547,2]
[349847093,1737459054823,-336.0557516,0.00020547,2]
[349847094,1737459054833,-588.98,0.00020547,2]
[349847095,1737459054843,-504.69,0.00020547,2]
[349847096,1737459054853,-500.0,0.00020547,2]
[349847097,1737459054863,-500.0,0.00020547,2]
[349847098,1737459054873,-500.0,0.00020547,2]
[349847099,1737459054886,-500.0,0.00020547,2]
[349847100,1737459054896,-500.0,0.00020547,2]
[349847101,1737459054906,-996.46,0.00020547,2]
[349847102,1737459054916,-500.0,0.00020547,2]
[349847103,1737459054926,-500.0,0.00020547,2]
[349847104,1737459054936,-500.0,0.00020547,2]
[349847105,1737459054946,-569.02,0.00020547,2]
[349847106,1737459054956,-504.63,0.00020547,2]
[349847107,1737459054966,-500.0,0.00020547,2]
[349847108,1737459054976,-500.0,0.00020547,2]
[349847109,1737459054986,-500.0,0.00020547,2]
[349847110,1737459054996,-561.3,0.00020547,2]
[349847111,1737459055007,-500.0,0.00020547,2]
[349847112,1737459055017,-324.81838924,0.00020547,2]
[349847113,1737459055027,-500.0,0.00020547,2]
[349847114,1737459055036,-410.45296122,0.00020547,2]
[349847115,1737459055046,-500.0,0.00020547,2]
[349847116,1737459055056,-500.0,0.00020547,2]
[349847117,1737459055066,-500.0,0.00020547,2]
[349847118,1737459055076,-500.0,0.00020547,2]
[349847119,1737459055086,-500.0,0.00020547,2]
[349847120,1737459055096,-500.0,0.00020547,2]
[349847121,1737459055106,-500.0,0.00020547,2]
[349847122,1737459055115,-500.0,0.00020547,2]
[349847123,1737459055126,-500.0,0.00020547,2]
[349847124,1737459055136,-500.0,0.00020547,2]
[349847125,1737459055146,-500.0,0.00020547,2]
[349847126,1737459055155,-500.0,0.00020547,2]
[349847127,1737459055165,-500.0,0.00020547,2]
[349847128,1737459055175,-500.0,0.00020547,2]
[349847129,1737459055184,-500.0,0.00020547,2]
[349847130,1737459055194,-500.0,0.00020547,2]
[349847131,1737459055204,-500.0,0.00020547,2]
[349847132,1737459055214,-500.0,0.00020547,2]
[349847133,1737459055224,-500.0,0.00020547,2]
[349847134,1737459055233,-500.0,0.00020547,2]
[349847135,1737459055243,-500.0,0.00020547,2]
[349847136,1737459055253,-500.0,0.00020547,2]
[349847137,1737459055263,-500.0,0.00020547,2]
[349847138,1737459055273,-500.0,0.00020547,2]
[349847139,1737459055282,-500.0,0.00020547,2]
[349847140,1737459055291,-2379.98,0.00020547,2]
[349847141,1737459055302,-500.0,0.00020547,2]
[349847142,1737459055311,-500.0,0.00020547,2]
[349847143,1737459055321,-500.0,0.00020547,2]
[349847144,1737459055331,-500.0,0.00020547,2]
[349847145,1737459055341,-500.0,0.00020547,2]
[349847146,1737459055351,-500.0,0.00020547,2]
[349847147,1737459055361,-500.0,0.00020547,2]
[349847148,1737459055371,-1310.02,0.00020547,2]
[349847149,1737459055386,-200.79,0.00020547,2]
[349847150,1737459055396,-500.0,0.00020547,2]
[349847151,1737459055406,-500.0,0.00020547,2]
[349847152,1737459055416,-500.0,0.00020547,2]
[349847153,1737459055427,-500.0,0.00020547,2]
[349847154,1737459055437,-500.0,0.00020547,2]
[349847155,1737459055447,-578.98,0.00020547,2]
[349847156,1737459055457,-500.0,0.00020547,2]
[349847157,1737459055467,-1410.6,0.00020547,2]
[349847158,1737459055477,-500.0,0.00020547,2]
[349847159,1737459055487,-500.0,0.00020547,2]
[349847160,1737459055497,-732.73,0.00020547,2]
[349847161,1737459055506,-500.0,0.00020547,2]
[349847162,1737459055516,-500.0,0.00020547,2]
[349847163,1737459055526,-500.0,0.00020547,2]
[349847164,1737459055536,-786.26,0.00020547,2]
[349847165,1737459055546,-336.52223064,0.00020547,2]
[349847166,1737459055716,-1000.0,0.00020547,2]
[349847167,1737459055727,-763.29,0.00020547,2]
[349847168,1737459055738,-191.42331697,0.00020547,2]
[349847169,1737459055748,-500.0,0.00020547,2]
[349847170,1737459055757,-2378.04,0.00020547,2]
[349847171,1737459055770,-500.0,0.00020547,2]
[349847172,1737459055780,-500.0,0.00020547,2]
[349847173,1737459055790,-2033.22,0.00020547,2]
[349847174,1737459055800,-500.0,0.00020547,2]
[349847175,1737459055809,-500.0,0.00020547,2]
[349847176,1737459055819,-3000.0,0.00020547,2]
[349847177,1737459055828,-804.36,0.00020547,2]
[349847178,1737459055838,-1243.05,0.00020547,2]
[349847179,1737459055848,-500.0,0.00020547,2]
[349847180,1737459055857,-500.0,0.00020547,2]
[349847181,1737459055866,-524.02587036,0.00020547,2]
[349847182,1737459055879,-1212.13,0.00020547,2]
[349847183,1737459055890,-507.9647397,0.00020547,2]
[349847184,1737459055899,-511.02399426,0.00020547,2]
[349847185,1737459055909,-801.03,0.00020547,2]
[349847186,1737459055919,-1422.08,0.00020547,2]
[349847187,1737459055928,-500.0,0.00020547,2]
[349847188,1737459055937,-801.79,0.00020547,2]
[349847189,1737459055947,-500.0,0.00020547,2]
[349847190,1737459055956,-279.16344139,0.00020547,2]
[349847191,1737459055966,-500.0,0.00020547,2]
[349847192,1737459055976,-776.86,0.00020547,2]
[349847193,1737459055986,-500.0,0.00020547,2]
[349847194,1737459055996,-500.0,0.00020547,2]
[349847195,1737459056005,-500.0,0.00020547,2]
[349847196,1737459056014,-945.19,0.00020547,2]
[349847197,1737459056024,-500.0,0.00020547,2]
[349847198,1737459056034,-536.81,0.00020547,2]
[349847199,1737459056043,-1679.81,0.00020547,2]
[349847200,1737459056053,-500.0,0.00020547,2]
[349847201,1737459056062,-500.0,0.00020547,2]
[349847202,1737459056072,-1114.25,0.00020547,2]
[349847203,1737459056081,-500.0,0.00020547,2]
[349847204,1737459056090,-500.0,0.00020547,2]
[349847205,1737459056100,-500.0,0.00020547,2]
[349847206,1737459056109,-500.0,0.00020547,2]
[349847207,1737459056119,-1635.45,0.00020547,2]
[349847208,1737459056130,-300.0,0.00020547,2]
[349847209,1737459056139,-500.0,0.00020547,2]
[349847210,1737459056149,-500.0,0.00020547,2]
[349847211,1737459056158,-1109.47,0.00020547,2]
[349847212,1737459056167,-534.9,0.00020547,2]
[349847213,1737459056176,-500.0,0.00020547,2]
[349847214,1737459056185,-1760.33,0.00020547,2]
[349847215,1737459056194,-1889.17,0.00020547,2]
[349847216,1737459056203,-500.0,0.00020547,2]
[349847217,1737459056212,-500.0,0.00020547,2]
[349847218,1737459056222,-500.0,0.00020547,2]
[349847219,1737459056232,-802.73,0.00020547,2]
[349847220,1737459056242,-571.56,0.00020547,2]
[349847221,1737459056252,-500.0,0.00020547,2]
[349847222,1737459056262,-1328.05,0.00020547,2]
[349847223,1737459056272,-557.89568996,0.00020547,2]
[349847224,1737459056282,-500.0,0.00020547,2]
[349847225,1737459056292,-500.0,0.00020547,2]
[349847226,1737459056302,-1490.59,0.00020547,2]
[349847227,1737459056312,-500.0,0.00020547,2]
[349847228,1737459056322,-500.0,0.00020547,2]
[349847229,1737459056332,-500.0,0.00020547,2]
[349847230,1737459056342,-909.06,0.00020547,2]
[349847231,1737459056352,-500.0,0.00020547,2]
[349847232,1737459056361,-818.71,0.00020547,2]
[349847233,1737459056371,-500.0,0.00020547,2]
[349847234,1737459056384,-500.0,0.00020547,2]
[349847235,1737459056394,-500.0,0.00020547,2]
[349847236,1737459056405,-641.35413624,0.00020547,2]
[349847237,1737459056415,-2484.05,0.00020547,2]
[349847238,1737459056425,-872.4,0.00020547,2]
[349847239,1737459056435,-500.0,0.00020547,2]
[349847240,1737459056444,-513.49,0.00020547,2]
[349847241,1737459056453,-500.0,0.00020547,2]
[349847242,1737459056463,-500.0,0.00020547,2]
[349847243,1737459056473,-500.0,0.00020547,2]
[349847244,1737459056484,-500.0,0.00020547,2]
[349847245,1737459056494,-500.0,0.00020547,2]
[349847246,1737459056504,-2351.36,0.00020547,2]
[349847247,1737459056514,-500.0,0.00020547,2]
[349847248,1737459056525,-500.0,0.00020547,2]
[349847249,1737459056535,-500.0,0.00020547,2]
[349847250,1737459056546,-500.0,0.00020547,2]
[349847251,1737459056559,-638.32,0.00020547,2]
[349847252,1737459056572,-500.0,0.00020547,2]
[349847253,1737459056583,-544.04,0.00020547,2]
[349847254,1737459056593,-500.0,0.00020547,2]
[349847255,1737459056604,-623.62,0.00020547,2]
[349847256,1737459056614,-500.0,0.00020547,2]
[349847257,1737459056628,-500.0,0.00020547,2]
[349847258,1737459056638,-500.0,0.00020547,2]
[349847259,1737459056648,-500.0,0.00020547,2]
[349847260,1737459056658,-500.0,0.00020547,2]
[349847261,1737459056668,-537.74,0.00020547,2]
[349847262,1737459056678,-500.0,0.00020547,2]
[349847263,1737459056688,-500.0,0.00020547,2]
[349847264,1737459056698,-500.0,0.00020547,2]
[349847265,1737459056708,-500.0,0.00020547,2]
[349847266,1737459056718,-500.0,0.00020547,2]
[349847267,1737459056728,-585.42,0.00020547,2]
[349847268,1737459056738,-2128.11,0.00020547,2]
[349847269,1737459056748,-500.0,0.00020547,2]
[349847270,1737459056758,-500.0,0.00020547,2]
[349847271,1737459056768,-500.0,0.00020547,2]
[349847272,1737459056777,-765.34,0.00020547,2]
[349847273,1737459056787,-500.0,0.00020547,2]
[349847274,1737459056798,-500.0,0.00020547,2]
[349847275,1737459056808,-500.0,0.00020547,2]
[349847276,1737459056818,-500.0,0.00020547,2]
[349847277,1737459056828,-500.0,0.00020547,2]
[349847278,1737459056838,-632.05,0.00020547,2]
[349847279,1737459056848,-500.0,0.00020547,2]
[349847280,1737459056859,-500.0,0.00020547,2]
[349847281,1737459056868,-500.0,0.00020547,2]
[349847282,1737459056883,-500.0,0.00020547,2]
[349847283,1737459056893,-322.54860794,0.00020547,2]
[349847284,1737459056903,-500.0,0.00020547,2]
[349847285,1737459056913,-1427.89,0.00020547,2]
[349847286,1737459056922,-352.77325604,0.00020547,2]
[349847287,1737459056931,-1787.2,0.00020547,2]
[349847288,1737459056940,-531.87,0.00020547,2]
[349847289,1737459056949,-500.0,0.00020547,2]
[349847290,1737459056958,-500.0,0.00020547,2]
[349847291,1737459056967,-300.0,0.00020552,2]
[349847292,1737459056976,-300.0,0.00020562,2]
[349847293,1737459056985,-150.0,0.00020596,2]
[349847294,1737459056995,-171.72442,0.00020596,2]
[349847295,1737459057004,-2110.0,0.00020675,2]
[349847296,1737459057013,-693.33549251,0.00020693,2]
[349847297,1737459057023,-83713.1107,0.00020721,2]
[349847298,1737459057032,-150.0,0.00020729,2]
[349847299,1737459057042,-244.97,0.0002074,2]
[349847300,1737459057051,-438.48,0.0002074,2]
[349847301,1737459057060,-150.0,0.00020743,2]
[349847302,1737459057069,-2000.0,0.00020752,2]
[349847303,1737459057079,-200.0,0.00020752,2]
[349847304,1737459057089,-150.0,0.00020768,2]
[349847305,1737459057098,-2037.0,0.000208,2]
[349847306,1737459057107,-152.0,0.00020803,3]
[349847307,1737459057116,-232.94,0.00020809,2]
[349847308,1737459057129,-150.0,0.00020815,2]
[349847309,1737459057139,-636.0,0.00020815,2]
[349847310,1737459057149,-567.0,0.00020815,2]
[349847311,1737459057158,-1864.0,0.00020815,2]
[349847312,1737459057167,-2948.0,0.00020815,2]
[349847313,1737459057176,-1261.0,0.00020815,2]
[349847314,1737459057185,-907.0,0.00020815,2]
[349847315,1737459057195,-781.0,0.00020815,2]
[349847316,1737459057207,-537.0,0.00020815,2]
[349847317,1737459057217,-150.0,0.00020815,2]
[349847318,1737459057227,-3984.0,0.00020815,2]
[349847319,1737459057237,-1106.0,0.00020815,2]
[349847320,1737459057247,-152.519,0.00020815,2]
[349847321,1737459057256,-151.0,0.00020815,2]
[349847322,1737459057265,-1269.0,0.00020815,2]
[349847323,1737459057287,-3902.0,0.00020815,2]
[349847324,1737459057296,-500.0,0.0002082,2]
[349847325,1737459057305,-1213.76,0.0002082,2]
[349847326,1737459057317,-624.28,0.0002082,2]
[349847327,1737459057326,-1357.46,0.0002082,2]
[349847328,1737459057337,-6606.09,0.0002082,2]
[349847329,1737459057347,-500.0,0.0002082,2]
[349847330,1737459057357,-500.0,0.0002082,2]
[349847331,1737459057367,-500.0,0.0002082,2]
[349847332,1737459057381,-409.204484,0.0002082,2]
[349847333,1737459057392,-785.18,0.0002082,2]
[349847334,1737459057401,-724.87,0.0002082,2]
[349847335,1737459057411,-1338.48,0.0002082,2]
[349847336,1737459057422,-596.08,0.0002082,2]
[349847337,1737459057432,-1373.44,0.0002082,2]
[349847338,1737459057441,-762.52,0.0002082,2]
[349847339,1737459057451,-289.329478,0.0002082,2]
[349847340,1737459057460,-830.31,0.0002082,2]
[349847341,1737459057469,-500.0,0.0002082,2]
[349847342,1737459057479,-500.0,0.0002082,2]
[349847343,1737459057489,-2465.73,0.0002082,2]
[349847344,1737459057499,-1634.47,0.0002082,2]
[349847345,1737459057510,-910.98,0.0002082,2]
[349847346,1737459057520,-760.26,0.0002082,2]
[349847347,1737459057530,-1581.37,0.0002082,2]
[349847348,1737459057541,-1827.33,0.0002082,2]
[349847349,1737459057552,-500.0,0.0002082,2]
[349847350,1737459057568,-1239.55,0.0002082,2]
[349847351,1737459057578,-923.48,0.0002082,2]
[349847352,1737459057588,-150.196153,0.0002082,2]
[349847353,1737459057599,-2290.67,0.0002082,2]
[349847354,1737459057611,-801.08,0.0002082,2]
[349847355,1737459057629,-886.64,0.0002082,2]
[349847356,1737459057640,-677.79,0.0002082,2]
[349847357,1737459057650,-963.55,0.0002082,2]
[349847358,1737459057660,-1690.83,0.0002082,2]
[349847359,1737459057669,-1017.87,0.0002082,2]
[349847360,1737459057679,-621.39429704,0.00020821,2]
[349847361,1737459057688,-500.0,0.00020821,2]
[349847362,1737459057700,-915.83,0.00020821,2]
[349847363,1737459057709,-500.0,0.00020821,2]
[349847364,1737459057718,-500.0,0.00020821,2]
[349847365,1737459057728,-531.82,0.00020821,2]
[349847366,1737459057738,-574.4282957,0.00020821,2]
[349847367,1737459057749,-500.0,0.00020821,2]
[349847368,1737459057761,-500.0,0.00020821,2]
[349847369,1737459057771,-500.0,0.00020821,2]
[349847370,1737459057780,-500.0,0.00020821,2]
[349847371,1737459057790,-588.98,0.00020821,2]
[349847372,1737459057799,-504.69,0.00020821,2]
[349847373,1737459057808,-456.61,0.00020821,2]
[349847374,1737459057817,-500.0,0.00020821,2]
[349847375,1737459057827,-500.0,0.00020821,2]
[349847376,1737459057842,-500.0,0.00020821,2]
[349847377,1737459057855,-500.0,0.00020821,2]
[349847378,1737459057867,-996.46,0.00020821,2]
[349847379,1737459057878,-500.0,0.00020821,2]
[349847380,1737459057889,-569.02,0.00020821,2]
[349847381,1737459057903,-504.63,0.00020821,2]
[349847382,1737459057915,-500.0,0.00020821,2]
[349847383,1737459057927,-500.0,0.00020821,2]
[349847384,1737459057940,-500.0,0.00020821,2]
[349847385,1737459057953,-561.3,0.00020821,2]
[349847386,1737459057964,-500.0,0.00020821,2]
[349847387,1737459057975,-500.0,0.00020821,2]
[349847388,1737459057989,-500.0,0.00020821,2]
[349847389,1737459057999,-500.0,0.00020821,2]
[349847390,1737459058009,-500.0,0.00020821,2]
[349847391,1737459058019,-500.0,0.00020821,2]
[349847392,1737459058031,-500.0,0.00020821,2]
[349847393,1737459058043,-500.0,0.00020821,2]
[349847394,1737459058053,-500.0,0.00020821,2]
[349847395,1737459058062,-500.0,0.00020821,2]
[349847396,1737459058073,-500.0,0.00020821,2]
[349847397,1737459058084,-500.0,0.00020821,2]
[349847398,1737459058096,-624.78146743,0.00020821,2]
[349847399,1737459058108,-500.0,0.00020821,2]
[349847400,1737459058119,-500.0,0.00020821,2]
[349847401,1737459058133,-176.01967748,0.00020821,2]
[349847402,1737459058143,-500.0,0.00020821,2]
[349847403,1737459058154,-500.0,0.00020821,2]
[349847404,1737459058163,-500.0,0.00020821,2]
[349847405,1737459058172,-500.0,0.00020821,2]
[349847406,1737459058182,-500.0,0.00020821,2]
[349847407,1737459058191,-500.0,0.00020821,2]
[349847408,1737459058201,-500.0,0.00020821,2]
[349847409,1737459058210,-500.0,0.00020821,2]
[349847410,1737459058220,-500.0,0.00020821,2]
[349847411,1737459058230,-500.0,0.00020821,2]
[349847412,1737459058239,-2379.98,0.00020821,2]
[349847413,1737459058248,-500.0,0.00020821,2]
[349847414,1737459058258,-500.0,0.00020821,2]
[349847415,1737459058266,-500.0,0.00020821,2]
[349847416,1737459058275,-500.0,0.00020821,2]
[349847417,1737459058284,-500.0,0.00020821,2]
[349847418,1737459058297,-1310.02,0.00020821,2]
[349847419,1737459058306,-500.0,0.00020821,2]
[349847420,1737459058315,-267.74526503,0.00020821,2]
[349847421,1737459058324,-578.98,0.00020821,2]
[349847422,1737459058333,-500.0,0.00020821,2]
[349847423,1737459058341,-1410.6,0.00020821,2]
[349847424,1737459058350,-500.0,0.00020821,2]
[349847425,1737459058359,-732.73,0.00020821,2]
[349847426,1737459058368,-500.0,0.00020821,2]
[349847427,1737459058380,-500.0,0.00020821,2]
[349847428,1737459058389,-786.26,0.00020821,2]
[349847429,1737459058397,-1000.0,0.00020821,2]
[349847430,1737459058406,-763.29,0.00020821,2]
[349847431,1737459058417,-168.96150707,0.00020821,2]
[349847432,1737459058426,-2378.04,0.00020821,2]
[349847433,1737459058436,-500.0,0.00020821,2]
[349847434,1737459058445,-500.0,0.00020821,2]
[349847435,1737459058456,-2033.22,0.00020821,2]
[349847436,1737459058466,-500.0,0.00020821,2]
[349847437,1737459058476,-804.36,0.00020821,2]
[349847438,1737459058486,-1243.05,0.00020821,2]
[349847439,1737459058495,-500.0,0.00020821,2]
[349847440,1737459058504,-500.0,0.00020821,2]
[349847441,1737459058513,-1212.13,0.00020821,2]
[349847442,1737459058523,-801.03,0.00020821,2]
[349847443,1737459058532,-1422.08,0.00020821,2]
[349847444,1737459058543,-517.29758797,0.00020821,2]
[349847445,1737459058553,-801.79,0.00020821,2]
[349847446,1737459058566,-500.0,0.00020821,2]
[349847447,1737459058576,-500.0,0.00020821,2]
[349847448,1737459058587,-776.86,0.00020821,2]
[349847449,1737459058596,-500.0,0.00020821,2]
[349847450,1737459058607,-500.0,0.00020821,2]
[349847451,1737459058616,-500.0,0.00020821,2]
[349847452,1737459058627,-945.19,0.00020821,2]
[349847453,1737459058636,-500.0,0.00020821,2]
[349847454,1737459058647,-536.81,0.00020821,2]
[349847455,1737459058656,-1679.81,0.00020821,2]
[349847456,1737459058665,-500.0,0.00020821,2]
[349847457,1737459058673,-500.0,0.00020821,2]
[349847458,1737459058682,-1114.25,0.00020821,2]
[349847459,1737459058692,-500.0,0.00020821,2]
[349847460,1737459058701,-500.0,0.00020821,2]
[349847461,1737459058709,-500.0,0.00020821,2]
[349847462,1737459058718,-500.0,0.00020821,2]
[349847463,1737459058728,-1635.45,0.00020821,2]
[349847464,1737459058738,-500.0,0.00020821,2]
[349847465,1737459058747,-300.0,0.00020821,2]
[349847466,1737459058756,-500.0,0.00020821,2]
[349847467,1737459058765,-1109.47,0.00020821,2]
[349847468,1737459058775,-534.9,0.00020821,2]
[349847469,1737459058784,-500.0,0.00020821,2]
[349847470,1737459058793,-1760.33,0.00020821,2]
[349847471,1737459058803,-1889.17,0.00020821,2]
[349847472,1737459058812,-500.0,0.00020821,2]
[349847473,1737459058822,-500.0,0.00020821,2]
[349847474,1737459058832,-503.50850436,0.00020821,2]
[349847475,1737459058842,-802.73,0.00020821,2]
[349847476,1737459058852,-571.56,0.00020821,2]
[349847477,1737459058862,-500.0,0.00020821,2]
[349847478,1737459058872,-1328.05,0.00020821,2]
[349847479,1737459058885,-500.0,0.00020821,2]
[349847480,1737459058895,-1490.59,0.00020821,2]
[349847481,1737459058905,-500.0,0.00020821,2]
[349847482,1737459058914,-500.0,0.00020821,2]
[349847483,1737459058923,-623.27854637,0.00020821,2]
[349847484,1737459058933,-909.06,0.00020821,2]
[349847485,1737459058942,-500.0,0.00020821,2]